[Event "51st Rilton Cup 2023-24"]
[Site "Stockholm"]
[Date "2024.01.02"]
[Round "6.15"]
[White "Marn, Jan"]
[Black "Bailet, Pierre"]
[Result "0-1"]
[ECO "D02"]
[WhiteElo "2322"]
[BlackElo "2492"]
[Annotator "TA"]
[PlyCount "107"]
[EventDate "2023.12.27"]
[EventType "swiss"]
[EventCountry "SWE"]
[SourceTitle "playchess.com"]
[Source "ChessBase"]
[SourceQuality "1"]
[TimeControl "40/5400+30:1800+30"]

{[%evp 15,107,-8,7,8,-7,-25,-23,-18,-17,-26,-8,-13,35,25,36,-44,-33,-69,-58,-63,-58,-62,-63,-67,-61,-59,-58,-64,-64,-75,-74,-76,-72,-113,-76,-83,-76,-110,-130,-189,-174,-174,-167,-156,-132,-445,-430,-426,-129,-410,-131,-138,0,0,0,-38,-32,-33,-55,-105,-114,-114,-83,-146,-146,-139,-121,-119,-100,-165,-166,-166,-166,-442,-454,-441,-420,-390,-359,-624,-547,-607,-594,-591,-573,-559,-544,-1609,-1638,-1249,-1606,-2639,-2330,-1068]} 1. d4 {[%emt 0:00:02]} Nf6 {[%emt 0:00:18]} 2. Bf4 {[%emt 0:01:04]} d5 {[%emt 0:02:00]} 3. e3 {[%emt 0:01:26]} e6 {[%emt 0:00:50]} 4. Nf3 {[%emt 0:00:07]} Bd6 {[%emt 0:01:22]} 5. Nbd2 {[%emt 0:00:09]} O-O {[%emt 0:01:07]} 6. Bd3 {[%emt 0:06:32]} c5 {[%emt 0:02:58]} 7. c3 {[%emt 0:01:03]} Nc6 {[%emt 0:07:45]} 8. Bg3 {[%emt 0:00:08]} b6 {[%emt 0:01:02]} 9. e4 {[%emt 0:00:45][%cal Be3e4,Be4e5,Be5f6][%mdl 32] D02: 1 d4 d5 2 Nf3 sidelines, including 2...Nf6 3 g3 and 2...Nf6 3 Bf4.} Be7 {[%emt 0:01:39]} 10. e5 {[%emt 0:00:13]} Nh5 {[%emt 0:00:26]} 11. Ng5 {[%emt 0:00:12][%mdl 64] Discovered Attack. Black has an edge. 11.a3 is not played anymore.} Bxg5 {[%emt 0:01:43]} (11... Nxg3 $2 12. Bxh7+ Kh8 13. Nxf7+ Rxf7 14. hxg3 $18) 12. Qxh5 {[%emt 0:00:10][%csl Gd3][%cal Rh5h7]} g6 {[%emt 0:00:32]} (12... cxd4 $2 13. Qxh7#) 13. Qe2 {[%emt 0:00:08]} f5 {[%emt 0:07:30]} (13... cxd4 $11 14. O-O dxc3 15. bxc3 Bb7) 14. exf6 $14 {[%emt 0:17:08]} cxd4 {[%emt 0:08:25][%cal Bc5d4,Bd4c3,Bc3b2][%mdl 32] [#]} 15. Bb5 $146 {[%emt 0:12:49]} (15. Nf3 $1 $14 Qxf6 16. Nxg5 Qxg5 17. Bb5) ({Predecessor:} 15. Nf3 Bxf6 16. Bb5 Qe8 17. cxd4 Bd7 18. Bxc6 Bxc6 19. Be5 Bb5 20. Qd2 Rc8 21. Bxf6 Rxf6 {½-½ Eren,A (2321)-Tarlabasi,E (2275) TUR-ch Antalya 2020 (1)}) 15... dxc3 $15 {[%emt 0:07:15]} 16. Nf3 {[%emt 0:03:44] Against Nd4} (16. Bxc6 cxd2+ 17. Kd1 Bd7 18. Bxa8 Qxa8) 16... cxb2 {[%emt 0:05:20]} (16... Bxf6 $2 17. Bxc6 cxb2 18. Rb1 $18) 17. Rb1 {[%emt 0:00:29] [#]} Qxf6 $1 {[%emt 0:04:33]} 18. O-O {[%emt 0:05:02]} (18. Nxg5 Qxg5) 18... Nd4 {[%emt 0:04:33]} 19. Nxd4 {[%emt 0:00:24]} Qxd4 {[%emt 0:00:19]} 20. Bc6 {[%emt 0:00:39][%cal Ob1b2] Threatens to win with Rxb2!} Qc4 $1 {[%emt 0:00:38]} 21. Qxc4 {[%emt 0:00:52]} (21. Rxb2 $2 Qxc6 22. Rc2 Ba6 $19) 21... dxc4 {[%emt 0:00:07]} 22. Bxa8 {[%emt 0:00:03]} c3 {[%emt 0:00:28]} 23. Be4 {[%emt 0:01:14]} Ba6 $36 {[%emt 0:00:34][%mdl 2048] Black is in control.} 24. Rfd1 {[%emt 0:23:13]} Rc8 {[%emt 0:04:45] White must now prevent ...c2. Black is more active.} 25. Bc2 {[%emt 0:00:33]} Bc4 {[%emt 0:02:24]} 26. Rd7 {[%emt 0:19:03]} Bxa2 {[%emt 0:05:10]} 27. Rc7 {[%emt 0:00:04]} (27. Rf1 $17 {is a better defense.}) 27... Rxc7 {[%emt 0:00:35]} 28. Bxc7 {[%emt 0:00:05][%cal Of2f4]} Bd2 {[%emt 0:09:34]} (28... Bxb1 29. Bxb1 Bf6 30. Kf1 $17) 29. Rd1 {[%emt 0:02:44]} Bc4 {[%emt 0:11:14][%mdl 1024] aiming for ...Be2. Black has strong compensation.} 30. f3 $2 {[%emt 0:01:23][%mdl 8192]} (30. Be5 $17) 30... Be2 $19 {[%emt 0:01:30]} 31. Rb1 {[%emt 0:00:34]} Be3+ {[%emt 0:01:03]} 32. Kh1 {[%emt 0:00:02] [#]} Bc4 $2 {[%emt 0:01:29]} (32... Bd4 $1 $19 {is more deadly.} 33. h4 a5) 33. Rd1 {[%emt 0:03:45] [#]} a5 {[%emt 0:02:07]} (33... Bd4 $1 $17 {[%cal Oa7a5] ...a5! would be deadly.} 34. Rxd4 Bb3) 34. Rd8+ $11 {[%emt 0:00:54]} Kf7 {[%emt 0:02:03][%cal Oc4b3] ...Bb3! is the strong threat.} 35. Be5 {[%emt 0:00:04] [#]} Bb3 $1 {[%emt 0:01:31][%mdl 64] Decoy, Promotion} 36. Be4 {[%emt 0:00:40]} c2 {[%emt 0:01:15] Some like it hot} 37. Bxc2 {[%emt 0:00:52]} Bxc2 $17 {[%emt 0:00:07]} 38. Bxb2 $15 {[%emt 0:00:02][%mdl 4096] Endgame KRB-KB} h5 {[%emt 0:00:53]} 39. Rd7+ {[%emt 0:00:22]} ({Better is} 39. Ba3) 39... Ke8 $17 {[%emt 0:00:20]} 40. Ra7 {[%emt 0:01:02]} a4 {[%emt 0:01:06]} 41. Ba3 {[%emt 0:30:16]} Bb3 {[%emt 0:31:34]} 42. g3 {[%emt 0:00:00]} (42. h3 $17 {might work better.}) 42... Bd5 {[%emt 0:00:00][%cal Rd5f3]} 43. Kg2 {[%emt 0:00:00]} b5 {[%emt 0:00:00]} 44. Ra5 {[%emt 0:00:00]} (44. Re7+ {keeps fighting.} Kd8 45. Bd6) 44... Bc6 $19 {[%emt 0:00:00]} 45. Kf1 {[%emt 0:00:00]} Kd7 {[%emt 0:00:00]} ({Inferior is} 45... Bxf3 46. Rxb5 Kd7 47. Ra5 $11) 46. Ke2 {[%emt 0:00:00]} Bg1 {[%emt 0:00:00]} 47. h4 $2 {[%emt 0:01:27]} (47. h3) 47... Kc7 {[%emt 0:00:00] Hoping for ...Kb6. Black is clearly winning.} 48. Be7 {[%emt 0:00:11]} Kb6 {[%emt 0:00:00]} 49. Bd8+ {[%emt 0:00:04]} Kb7 {[%emt 0:00:00] Strongly threatening ...Bb6.} 50. Be7 {[%emt 0:00:16]} Bd4 {[%emt 0:00:00]} 51. Bb4 {[%emt 0:02:04]} Kb6 {[%emt 0:00:00]} 52. Kd3 {[%emt 0:01:24]} Bf2 {[%emt 0:00:00] This pair of bishops is nice.} 53. g4 {[%emt 0:00:54]} Bxh4 {[%emt 0:00:00]} 54. Kd4 {[%emt 0:00:21] Weighted Error Value: White=0.56/Black=0.16 (very precise)} 0-1

[Event "51st Rilton Cup 2023-24"]
[Site "Stockholm"]
[Date "2024.01.02"]
[Round "6.16"]
[White "Terrieux, Kevin"]
[Black "Yordanov, Lachezar"]
[Result "1-0"]
[ECO "D27"]
[WhiteElo "2432"]
[BlackElo "2312"]
[Annotator "RC"]
[PlyCount "75"]
[EventDate "2023.12.27"]
[EventType "swiss"]
[EventCountry "SWE"]
[SourceTitle "playchess.com"]
[Source "ChessBase"]
[SourceQuality "1"]
[TimeControl "40/5400+30:1800+30"]

1. d4 {[%emt 0:00:06]} Nf6 {[%emt 0:08:48]} 2. c4 {[%emt 0:00:18]} e6 {[%emt 0:00:10]} 3. Nf3 {[%emt 0:01:12]} d5 {[%emt 0:00:32]} 4. Nc3 {[%emt 0:00:28]} dxc4 {[%emt 0:00:17]} 5. e3 {[%emt 0:02:49]} a6 {[%emt 0:00:52]} 6. a4 {[%emt 0:03:17]} b6 {[%emt 0:04:57]} 7. Bxc4 {[%emt 0:00:56]} Bb7 {[%emt 0:00:07]} 8. O-O {[%emt 0:01:09]} c5 {[%emt 0:03:11]} 9. Qe2 {[%emt 0:03:07]} Nbd7 {[%emt 0:00:35]} 10. Rd1 {[%emt 0:02:00]} Qc7 {[%emt 0:03:54]} 11. b3 {[%emt 0:08:56]} Be7 {[%emt 0:00:50]} 12. Bb2 {[%emt 0:03:27]} O-O {[%emt 0:00:25]} 13. d5 {[%emt 0:08:57]} exd5 {[%emt 0:02:08]} 14. Nxd5 {[%emt 0:00:02]} Nxd5 {[%emt 0:00:09]} 15. Bxd5 {[%emt 0:00:04]} Bxd5 {[%emt 0:02:39]} 16. Rxd5 {[%emt 0:00:05]} Nf6 {[%emt 0:00:08]} 17. Bxf6 {[%emt 0:02:16]} Bxf6 {[%emt 0:00:08]} 18. Rad1 {[%emt 0:00:13]} Rfd8 {[%emt 0:01:05]} 19. e4 {[%emt 0:15:30]} Rxd5 {[%emt 0:05:08]} 20. exd5 {[%emt 0:04:47]} g6 {[%emt 0:05:19]} 21. g3 {[%emt 0:03:23]} Qb7 {[%emt 0:02:55]} 22. Qc4 {[%emt 0:02:07]} Rd8 {[%emt 0:04:36]} 23. Rd3 {[%emt 0:03:55]} Rc8 {[%emt 0:04:01]} 24. Qf4 {[%emt 0:00:18]} Kg7 {[%emt 0:00:16]} 25. Ne5 {[%emt 0:14:30]} b5 {[%emt 0:02:03]} 26. Ng4 {[%emt 0:00:33]} Ba1 {[%emt 0:03:42]} 27. Qc1 {[%emt 0:00:14]} Bd4 {[%emt 0:02:52]} 28. Rxd4 {[%emt 0:00:10]} f5 {[%emt 0:00:06]} 29. Qh6+ {[%emt 0:03:54]} Kh8 {[%emt 0:00:12]} 30. Rf4 {[%emt 0:01:05]} Qe7 {[%emt 0:01:50]} 31. Ne3 {[%emt 0:02:36]} c4 {[%emt 0:00:04]} 32. bxc4 {[%emt 0:01:01]} bxa4 {[%emt 0:00:02]} 33. Rh4 {[%emt 0:00:59]} a3 {[%emt 0:00:29]} 34. d6 {[%emt 0:00:27]} Qf7 {[%emt 0:01:18]} 35. Nc2 {[%emt 0:02:33]} a2 {[%emt 0:00:08]} 36. Qd2 {[%emt 0:00:42]} Rb8 {[%emt 0:00:08]} 37. d7 {[%emt 0:00:39]} Qe7 {[%emt 0:00:35]} 38. Rd4 {[%emt 0:00:28]} 1-0

[Event "51st Rilton Cup 2023-24"]
[Site "Stockholm"]
[Date "2024.01.02"]
[Round "6.17"]
[White "Falkevall, Axel"]
[Black "Sidhant, Mohapatra"]
[Result "1/2-1/2"]
[ECO "B51"]
[WhiteElo "2311"]
[BlackElo "2408"]
[Annotator "RC"]
[PlyCount "175"]
[EventDate "2023.12.27"]
[EventType "swiss"]
[EventCountry "SWE"]
[SourceTitle "playchess.com"]
[Source "ChessBase"]
[SourceQuality "1"]
[TimeControl "40/5400+30:1800+30"]

1. e4 {[%emt 0:00:07]} c5 {[%emt 0:00:27]} 2. Nf3 {[%emt 0:00:20]} d6 {[%emt 0:00:24]} 3. Bb5+ {[%emt 0:00:17]} Nd7 {[%emt 0:00:53]} 4. a4 {[%emt 0:00:35]} a6 {[%emt 0:01:22]} 5. Be2 {[%emt 0:00:10]} Ngf6 {[%emt 0:01:04]} 6. Nc3 {[%emt 0:00:08]} g6 {[%emt 0:04:03]} 7. a5 {[%emt 0:03:05]} b5 {[%emt 0:02:04]} 8. axb6 {[%emt 0:00:13]} Bb7 {[%emt 0:00:14]} 9. d3 {[%emt 0:02:32]} Bg7 {[%emt 0:00:34]} 10. O-O {[%emt 0:00:58]} O-O {[%emt 0:00:32]} 11. Qd2 {[%emt 0:05:34]} a5 {[%emt 0:05:57]} 12. Qg5 {[%emt 0:06:20]} Qxb6 {[%emt 0:01:58]} 13. Qh4 {[%emt 0:02:28]} Bc6 {[%emt 0:00:27]} 14. Nd2 {[%emt 0:01:59]} d5 {[%emt 0:08:20]} 15. exd5 {[%emt 0:03:22]} Nxd5 {[%emt 0:00:06]} 16. Nc4 {[%emt 0:02:34]} Nxc3 {[%emt 0:04:50]} 17. Nxb6 {[%emt 0:13:31]} Nxe2+ {[%emt 0:00:06]} 18. Kh1 {[%emt 0:00:11]} Nxb6 {[%emt 0:00:07]} 19. Qxe7 {[%emt 0:04:31]} Nd4 {[%emt 0:02:19]} 20. c3 {[%emt 0:06:42]} Ne6 {[%emt 0:03:05]} 21. Qd6 {[%emt 0:06:00]} Rfc8 {[%emt 0:00:37]} 22. Re1 {[%emt 0:01:13]} a4 {[%emt 0:04:12]} 23. h4 {[%emt 0:05:04]} Bf8 {[%emt 0:00:51]} 24. Qg3 {[%emt 0:00:47]} Re8 {[%emt 0:00:09]} 25. Bg5 {[%emt 0:04:36]} Nd5 {[%emt 0:04:42]} 26. Rad1 {[%emt 0:07:26]} Nxg5 {[%emt 0:01:37]} 27. hxg5 {[%emt 0:01:21]} Rab8 {[%emt 0:02:09]} 28. Rxe8 {[%emt 0:06:30]} Rxe8 {[%emt 0:00:16]} 29. d4 {[%emt 0:00:33]} c4 {[%emt 0:02:10]} 30. Rd2 {[%emt 0:02:58]} Re1+ {[%emt 0:03:11]} 31. Kh2 {[%emt 0:00:03]} Re6 {[%emt 0:00:06]} 32. Qg4 {[%emt 0:03:07]} a3 {[%emt 0:08:56]} 33. bxa3 {[%emt 0:01:53]} Bxa3 {[%emt 0:00:04]} 34. Re2 {[%emt 0:00:38]} Bd7 {[%emt 0:00:15]} 35. Rxe6 {[%emt 0:00:56]} Bxe6 {[%emt 0:00:04]} 36. Qg3 {[%emt 0:00:54]} h5 {[%emt 0:01:19]} 37. gxh6 {[%emt 0:01:27]} Bc1 {[%emt 0:00:07]} 38. Kg1 {[%emt 0:01:36]} Bxh6 {[%emt 0:01:21]} 39. Qb8+ {[%emt 0:00:38]} Bf8 {[%emt 0:00:51]} 40. Qb2 {[%emt 0:00:48]} Kg7 {[%emt 0:02:02]} 41. Qa1 {[%emt 0:32:15]} Be7 {[%emt 0:30:47]} 42. g3 {[%emt 0:00:57]} Bg5 {[%emt 0:00:33]} 43. Qb2 {[%emt 0:01:47]} Bd8 {[%emt 0:00:32]} 44. Qa1 {[%emt 0:00:52]} Nf6 {[%emt 0:00:22]} 45. Qa8 {[%emt 0:00:00]} Be7 {[%emt 0:00:00]} 46. Qa7 {[%emt 0:00:00]} Nd5 {[%emt 0:00:00]} 47. Qa1 {[%emt 0:00:00]} g5 {[%emt 0:00:00]} 48. f3 {[%emt 0:00:00]} Bd6 {[%emt 0:00:00]} 49. Kf2 {[%emt 0:00:00]} g4 {[%emt 0:00:00]} 50. Qc1 {[%emt 0:00:00]} Be7 {[%emt 0:00:00]} 51. fxg4 {[%emt 0:00:00]} Bxg4 {[%emt 0:00:00]} 52. Qe1 {[%emt 0:00:00]} Bf6 {[%emt 0:00:00]} 53. Kg2 {[%emt 0:00:00]} Be6 {[%emt 0:00:00]} 54. Qd2 {[%emt 0:00:00]} Bd8 {[%emt 0:00:00]} 55. Qe1 {[%emt 0:00:00]} Ba5 {[%emt 0:00:00]} 56. Qe5+ {[%emt 0:00:00]} Kg8 {[%emt 0:00:00]} 57. Qb8+ {[%emt 0:01:18]} Kh7 {[%emt 0:00:00]} 58. Qb1+ {[%emt 0:00:46]} Kg7 {[%emt 0:00:00]} 59. Qc1 {[%emt 0:03:53]} Kg6 {[%emt 0:00:00]} 60. Qb1+ {[%emt 0:01:21]} Kf6 {[%emt 0:00:00]} 61. Kh2 {[%emt 0:01:21]} Nxc3 {[%emt 0:00:00]} 62. Qa1 {[%emt 0:00:34]} Bb4 {[%emt 0:00:00]} 63. d5 {[%emt 0:00:16]} Bxd5 {[%emt 0:00:00]} 64. Qb2 {[%emt 0:00:21]} Bd6 {[%emt 0:00:00]} 65. Qxc3+ {[%emt 0:00:05]} Be5 {[%emt 0:00:00]} 66. Qa5 {[%emt 0:00:19]} Be6 {[%emt 0:00:00]} 67. Qd8+ {[%emt 0:00:13]} Kf5 {[%emt 0:00:00]} 68. Kg2 {[%emt 0:01:06]} Bf6 {[%emt 0:00:00]} 69. Qa5+ {[%emt 0:00:18]} Kg6 {[%emt 0:00:00]} 70. Qa4 {[%emt 0:01:50]} c3 {[%emt 0:00:00]} 71. g4 {[%emt 0:00:07]} Kg7 {[%emt 0:00:00]} 72. Kf3 {[%emt 0:00:26]} Bd5+ {[%emt 0:00:00]} 73. Kf4 {[%emt 0:00:31]} Kg6 {[%emt 0:00:00]} 74. Qc2+ {[%emt 0:00:11]} Kg7 {[%emt 0:00:00]} 75. g5 {[%emt 0:00:26]} Be7 {[%emt 0:00:00]} 76. Qxc3+ {[%emt 0:00:08]} Kg8 {[%emt 0:00:00]} 77. Qc8+ {[%emt 0:00:25]} Bf8 {[%emt 0:00:00]} 78. Qe8 {[%emt 0:00:26]} Ba2 {[%emt 0:00:00]} 79. Ke5 {[%emt 0:01:05]} Bb1 {[%emt 0:00:00]} 80. Kf6 {[%emt 0:01:08]} Bg6 {[%emt 0:00:00]} 81. Qa8 {[%emt 0:00:09]} Bh5 {[%emt 0:00:00]} 82. Qb8 {[%emt 0:00:43]} Bg6 {[%emt 0:00:00]} 83. Qc8 {[%emt 0:00:22]} Bh5 {[%emt 0:00:00]} 84. Qh3 {[%emt 0:00:43]} Bg6 {[%emt 0:00:00]} 85. Qf3 {[%emt 0:00:57]} Bh7 {[%emt 0:00:00]} 86. Qa8 {[%emt 0:00:17]} Bg6 {[%emt 0:00:00]} 87. Qb8 {[%emt 0:00:55]} Bh5 {[%emt 0:00:00]} 88. Qa8 {[%emt 0:00:44]} 1/2-1/2

[Event "51st Rilton Cup 2023-24"]
[Site "Stockholm"]
[Date "2024.01.02"]
[Round "6.18"]
[White "Mamedov, Edgar"]
[Black "Krishna C R G"]
[Result "0-1"]
[ECO "A87"]
[WhiteElo "2321"]
[BlackElo "2396"]
[Annotator "RC"]
[PlyCount "68"]
[EventDate "2023.12.27"]
[EventType "swiss"]
[EventCountry "SWE"]
[SourceTitle "playchess.com"]
[Source "ChessBase"]
[SourceQuality "1"]
[TimeControl "40/5400+30:1800+30"]

1. d4 {[%emt 0:00:06]} d6 {[%emt 0:09:46]} 2. Nf3 {[%emt 0:00:43]} f5 {[%emt 0:00:25]} 3. g3 {[%emt 0:00:42]} Nf6 {[%emt 0:00:06]} 4. Bg2 {[%emt 0:00:10]} g6 {[%emt 0:00:06]} 5. O-O {[%emt 0:00:17]} Bg7 {[%emt 0:00:05]} 6. c4 {[%emt 0:00:18]} O-O {[%emt 0:00:03]} 7. Nc3 {[%emt 0:00:22]} e6 {[%emt 0:01:09]} 8. Re1 {[%emt 0:01:59]} Nc6 {[%emt 0:03:23]} 9. d5 {[%emt 0:24:10]} Ne5 {[%emt 0:09:50]} 10. Nd4 {[%emt 0:00:49]} Nxc4 {[%emt 0:17:21]} 11. Nxe6 {[%emt 0:04:31]} Bxe6 {[%emt 0:00:42]} 12. dxe6 {[%emt 0:00:03]} c6 {[%emt 0:00:48]} 13. Qb3 {[%emt 0:01:22]} d5 {[%emt 0:00:01]} 14. Qxb7 {[%emt 0:17:02]} Qb6 {[%emt 0:04:32]} 15. Qxb6 {[%emt 0:00:20]} axb6 {[%emt 0:00:02]} 16. e7 {[%emt 0:13:56]} Rfe8 {[%emt 0:05:48]} 17. Bg5 {[%emt 0:00:05]} Ne4 {[%emt 0:35:49]} 18. Nxe4 {[%emt 0:00:07]} fxe4 {[%emt 0:00:01]} 19. Bh3 {[%emt 0:00:13]} h6 {[%emt 0:00:01]} 20. Bd7 {[%emt 0:01:53]} hxg5 {[%emt 0:00:02]} 21. Bxc6 {[%emt 0:00:15]} Rac8 {[%emt 0:01:33]} 22. Bxe8 {[%emt 0:16:17]} Rxe8 {[%emt 0:00:02]} 23. Rad1 {[%emt 0:01:14]} d4 {[%emt 0:01:46]} 24. Rc1 {[%emt 0:04:29]} Nxb2 {[%emt 0:02:25]} 25. Rc6 {[%emt 0:00:26]} d3 {[%emt 0:01:15]} 26. exd3 {[%emt 0:00:04]} exd3 {[%emt 0:00:01]} 27. Rd6 {[%emt 0:00:32]} Kf7 {[%emt 0:00:02]} 28. Rc1 {[%emt 0:05:14]} Rxe7 {[%emt 0:01:04]} 29. Kf1 {[%emt 0:00:06]} Be5 {[%emt 0:02:08]} 30. Rd8 {[%emt 0:00:36]} Rc7 {[%emt 0:01:10]} 31. Re1 {[%emt 0:05:29]} Bf6 {[%emt 0:00:02]} 32. Rd6 {[%emt 0:00:52]} Bc3 {[%emt 0:00:20]} 33. Ree6 {[%emt 0:01:28]} d2 {[%emt 0:01:31]} 34. Rxg6 {[%emt 0:00:09]} Nc4 {[%emt 0:01:23]} 0-1

[Event "51st Rilton Cup 2023-24"]
[Site "Stockholm"]
[Date "2024.01.02"]
[Round "6.19"]
[White "D`Costa, Lorin"]
[Black "Grahn, Vidar"]
[Result "1-0"]
[ECO "A36"]
[WhiteElo "2375"]
[BlackElo "2274"]
[Annotator "RC"]
[PlyCount "87"]
[EventDate "2023.12.27"]
[EventType "swiss"]
[EventCountry "SWE"]
[SourceTitle "playchess.com"]
[Source "ChessBase"]
[SourceQuality "1"]
[TimeControl "40/5400+30:1800+30"]

1. Nf3 {[%emt 0:06:50]} c5 {[%emt 0:00:04]} 2. b3 {[%emt 0:00:33]} Nc6 {[%emt 0:00:19]} 3. Bb2 {[%emt 0:00:25]} d6 {[%emt 0:00:32]} 4. c4 {[%emt 0:02:10]} e5 {[%emt 0:00:31]} 5. Nc3 {[%emt 0:00:32]} g6 {[%emt 0:00:25]} 6. g3 {[%emt 0:00:50]} Bg7 {[%emt 0:00:09]} 7. d3 {[%emt 0:00:29]} Nge7 {[%emt 0:04:26]} 8. Bg2 {[%emt 0:00:55]} O-O {[%emt 0:00:53]} 9. O-O {[%emt 0:00:32]} a6 {[%emt 0:01:52]} 10. e3 {[%emt 0:11:02]} Rb8 {[%emt 0:01:33]} 11. Qe2 {[%emt 0:01:18]} b5 {[%emt 0:01:15]} 12. Rfd1 {[%emt 0:06:18]} f5 {[%emt 0:04:17]} 13. Rac1 {[%emt 0:04:16]} h6 {[%emt 0:02:59]} 14. Ba1 {[%emt 0:11:38]} Qe8 {[%emt 0:04:24]} 15. Nd5 {[%emt 0:07:53]} Nxd5 {[%emt 0:02:52]} 16. cxd5 {[%emt 0:00:11]} Ne7 {[%emt 0:00:06]} 17. e4 {[%emt 0:05:36]} f4 {[%emt 0:00:40]} 18. b4 {[%emt 0:02:16]} g5 {[%emt 0:04:00]} 19. bxc5 {[%emt 0:14:47]} g4 {[%emt 0:00:15]} 20. Nd2 {[%emt 0:01:44]} f3 {[%emt 0:02:22]} 21. Nxf3 {[%emt 0:00:30]} gxf3 {[%emt 0:00:05]} 22. Bxf3 {[%emt 0:00:08]} dxc5 {[%emt 0:03:57]} 23. Rxc5 {[%emt 0:00:09]} Qg6 {[%emt 0:02:27]} 24. Rdc1 {[%emt 0:04:39]} Bd7 {[%emt 0:04:06]} 25. Bc3 {[%emt 0:05:47]} b4 {[%emt 0:05:08]} 26. Bd2 {[%emt 0:00:37]} Rfc8 {[%emt 0:02:03]} 27. Bh5 {[%emt 0:02:23]} Qd6 {[%emt 0:01:14]} 28. Be3 {[%emt 0:00:05]} a5 {[%emt 0:01:14]} 29. f4 {[%emt 0:04:01]} exf4 {[%emt 0:04:15]} 30. gxf4 {[%emt 0:00:26]} Rxc5 {[%emt 0:01:21]} 31. Bxc5 {[%emt 0:01:12]} Qxf4 {[%emt 0:00:37]} 32. Rf1 {[%emt 0:00:20]} Qg5+ {[%emt 0:00:31]} 33. Kh1 {[%emt 0:00:05]} Be8 {[%emt 0:03:32]} 34. Bg4 {[%emt 0:04:50]} Bf7 {[%emt 0:05:17]} 35. Be3 {[%emt 0:00:20]} Qg6 {[%emt 0:00:39]} 36. Rxf7 {[%emt 0:00:21]} b3 {[%emt 0:01:52]} 37. axb3 {[%emt 0:00:51]} Rxb3 {[%emt 0:00:10]} 38. Be6 {[%emt 0:01:05]} Kh8 {[%emt 0:01:07]} 39. Rf1 {[%emt 0:01:03]} a4 {[%emt 0:01:28]} 40. Bf7 {[%emt 0:00:40]} Qd6 {[%emt 0:01:17]} 41. Bf4 {[%emt 0:11:10]} Qf6 {[%emt 0:00:25]} 42. Bg3 {[%emt 0:05:33]} Rb2 {[%emt 0:00:27]} 43. Rxf6 {[%emt 0:01:14]} Rxe2 {[%emt 0:00:05]} 44. Ra6 {[%emt 0:00:19]} 1-0

[Event "51st Rilton Cup 2023-24"]
[Site "Stockholm"]
[Date "2024.01.02"]
[Round "6.20"]
[White "Djurovic, Goran"]
[Black "Srihari L"]
[Result "1/2-1/2"]
[ECO "E71"]
[WhiteElo "2372"]
[BlackElo "2272"]
[Annotator "RC"]
[PlyCount "56"]
[EventDate "2023.12.27"]
[EventType "swiss"]
[EventCountry "SWE"]
[SourceTitle "playchess.com"]
[Source "ChessBase"]
[SourceQuality "1"]
[TimeControl "40/5400+30:1800+30"]

1. d4 {[%emt 0:12:00]} Nf6 {[%emt 0:00:05]} 2. c4 {[%emt 0:00:14]} g6 {[%emt 0:00:04]} 3. Nc3 {[%emt 0:00:12]} Bg7 {[%emt 0:00:04]} 4. e4 {[%emt 0:00:15]} d6 {[%emt 0:00:04]} 5. h3 {[%emt 0:00:19]} O-O {[%emt 0:00:14]} 6. Be3 {[%emt 0:00:32]} e5 {[%emt 0:00:18]} 7. d5 {[%emt 0:00:31]} Na6 {[%emt 0:00:11]} 8. g4 {[%emt 0:01:10]} Nc5 {[%emt 0:00:10]} 9. f3 {[%emt 0:00:18]} a5 {[%emt 0:00:10]} 10. Qd2 {[%emt 0:04:27]} c6 {[%emt 0:02:37]} 11. O-O-O {[%emt 0:00:53]} cxd5 {[%emt 0:07:02]} 12. cxd5 {[%emt 0:00:23]} a4 {[%emt 0:02:39]} 13. Kb1 {[%emt 0:02:05]} Qb6 {[%emt 0:07:32]} 14. a3 {[%emt 0:04:41]} Bd7 {[%emt 0:04:06]} 15. Nge2 {[%emt 0:00:45]} Rfc8 {[%emt 0:04:23]} 16. Nc1 {[%emt 0:00:31]} Qd8 {[%emt 0:04:34]} 17. Bd3 {[%emt 0:16:39]} b5 {[%emt 0:08:46]} 18. N3a2 {[%emt 0:06:23]} Nxd3 {[%emt 0:05:18]} 19. Nxd3 {[%emt 0:00:46]} Rc4 {[%emt 0:00:31]} 20. Rc1 {[%emt 0:06:36]} Rac8 {[%emt 0:01:55]} 21. Rxc4 {[%emt 0:01:27]} Rxc4 {[%emt 0:01:33]} 22. Rc1 {[%emt 0:00:24]} Rxc1+ {[%emt 0:02:47]} 23. Kxc1 {[%emt 0:02:19]} Ne8 {[%emt 0:01:44]} 24. Bg5 {[%emt 0:05:58]} Qc7+ {[%emt 0:14:12]} 25. Qc2 {[%emt 0:00:34]} Qb6 {[%emt 0:01:26]} 26. Qf2 {[%emt 0:00:09]} Qc7+ {[%emt 0:01:17]} 27. Qc2 {[%emt 0:00:08]} Qb6 {[%emt 0:00:06]} 28. Qf2 {[%emt 0:00:13]} Qc7+ {[%emt 0:02:05]} 1/2-1/2

[Event "51st Rilton Cup 2023-24"]
[Site "Stockholm"]
[Date "2024.01.02"]
[Round "6.21"]
[White "Wartiovaara, Oliver"]
[Black "Kavutskiy, Konstantin"]
[Result "0-1"]
[ECO "A37"]
[WhiteElo "2294"]
[BlackElo "2384"]
[Annotator "RC"]
[PlyCount "79"]
[EventDate "2023.12.27"]
[EventType "swiss"]
[EventCountry "SWE"]
[SourceTitle "playchess.com"]
[Source "ChessBase"]
[SourceQuality "1"]
[TimeControl "40/5400+30:1800+30"]

1. Nf3 {[%emt 0:00:03]} c5 {[%emt 0:07:28]} 2. g3 {[%emt 0:00:16]} Nc6 {[%emt 0:00:38]} 3. Bg2 {[%emt 0:00:06]} g6 {[%emt 0:00:37]} 4. c4 {[%emt 0:00:51]} Bg7 {[%emt 0:00:08]} 5. Nc3 {[%emt 0:00:06]} d6 {[%emt 0:00:13]} 6. O-O {[%emt 0:00:29]} e6 {[%emt 0:00:16]} 7. e3 {[%emt 0:01:48]} Nge7 {[%emt 0:01:28]} 8. d4 {[%emt 0:01:52]} O-O {[%emt 0:00:30]} 9. b3 {[%emt 0:01:56]} Nf5 {[%emt 0:01:45]} 10. Ne2 {[%emt 0:00:51]} e5 {[%emt 0:00:52]} 11. dxe5 {[%emt 0:08:15]} dxe5 {[%emt 0:03:05]} 12. Qxd8 {[%emt 0:00:13]} Rxd8 {[%emt 0:03:14]} 13. Ng5 {[%emt 0:00:17]} Nfe7 {[%emt 0:06:29]} 14. Ba3 {[%emt 0:04:18]} h6 {[%emt 0:02:58]} 15. Ne4 {[%emt 0:00:45]} b6 {[%emt 0:00:22]} 16. Rad1 {[%emt 0:09:04]} Be6 {[%emt 0:04:43]} 17. N4c3 {[%emt 0:03:17]} f5 {[%emt 0:04:28]} 18. Nd5 {[%emt 0:01:30]} Rac8 {[%emt 0:01:33]} 19. Rd2 {[%emt 0:06:47]} e4 {[%emt 0:12:03]} 20. Rfd1 {[%emt 0:07:55]} Bxd5 {[%emt 0:08:36]} 21. cxd5 {[%emt 0:00:06]} Ne5 {[%emt 0:00:05]} 22. Nf4 {[%emt 0:15:16]} Rd6 {[%emt 0:00:13]} 23. Bb2 {[%emt 0:00:54]} Nf3+ {[%emt 0:04:42]} 24. Bxf3 {[%emt 0:00:07]} exf3 {[%emt 0:00:05]} 25. Bxg7 {[%emt 0:03:06]} Kxg7 {[%emt 0:00:07]} 26. g4 {[%emt 0:00:23]} Kf6 {[%emt 0:01:35]} 27. gxf5 {[%emt 0:00:31]} gxf5 {[%emt 0:00:12]} 28. Kh1 {[%emt 0:01:24]} Rg8 {[%emt 0:04:04]} 29. Rg1 {[%emt 0:04:48]} Rxg1+ {[%emt 0:00:39]} 30. Kxg1 {[%emt 0:00:04]} Ke5 {[%emt 0:00:23]} 31. Rc2 {[%emt 0:04:45]} Nxd5 {[%emt 0:03:19]} 32. Nd3+ {[%emt 0:00:10]} Kf6 {[%emt 0:00:50]} 33. Ne1 {[%emt 0:00:28]} Nb4 {[%emt 0:00:32]} 34. Rc1 {[%emt 0:00:17]} Nxa2 {[%emt 0:02:30]} 35. Ra1 {[%emt 0:00:04]} Nc3 {[%emt 0:03:22]} 36. Nxf3 {[%emt 0:00:23]} a5 {[%emt 0:00:09]} 37. Kf1 {[%emt 0:01:38]} Rd3 {[%emt 0:00:19]} 38. Ke1 {[%emt 0:00:20]} f4 {[%emt 0:02:34]} 39. Nd2 {[%emt 0:01:37]} fxe3 {[%emt 0:00:43]} 40. Nc4 {[%emt 0:00:08]} 0-1